[Event "Titled Tuesday Blitz April 18 Late 2023"]
[White "mjelcic"]
[Black "Grigoriants, Sergey"]
[BlackFideId "4130804"]
[WhiteElo "2197"]
[BlackElo "2502"]
[Result "0-1"]
[Round "06"]
[TimeControl "180+2"]
[Date "2023.04.18"]
[WhiteClock "0:00:03"]
[BlackClock "0:00:05"]

1. c4 {[%clk 0:03:00]}  e5 {[%clk 0:02:54]} 2. Nc3 {[%clk 0:02:59]}  Nf6 {[%clk 0:02:54]} 3. g3 {[%clk 0:02:59]}  Bb4 {[%clk 0:02:54]} 4. Bg2 {[%clk 0:02:57]}  O-O {[%clk 0:02:54]} 5. e4 {[%clk 0:02:52]}  Nc6 {[%clk 0:02:53]} 6. Nge2 {[%clk 0:02:51]}  d6 {[%clk 0:02:52]} 7. O-O {[%clk 0:02:50]}  a5 {[%clk 0:02:49]} 8. Nd5 {[%clk 0:02:34]}  Bc5 {[%clk 0:02:47]} 9. d3 {[%clk 0:02:31]}  h6 {[%clk 0:02:39]} 10. Be3 {[%clk 0:02:25]}  Bg4 {[%clk 0:02:16]} 11. f3 {[%clk 0:02:13]}  Bd7 {[%clk 0:01:43]} 12. d4 {[%clk 0:02:12]}  Ba7 {[%clk 0:01:40]} 13. Qd2 {[%clk 0:02:05]}  Re8 {[%clk 0:01:24]} 14. Kh1 {[%clk 0:02:03]}  Nb4 {[%clk 0:01:19]} 15. Nxb4 {[%clk 0:01:54]}  axb4 {[%clk 0:01:18]} 16. Qxb4 {[%clk 0:01:52]}  exd4 {[%clk 0:01:12]} 17. Bxd4 {[%clk 0:01:50]}  Bxd4 {[%clk 0:01:10]} 18. Nxd4 {[%clk 0:01:40]}  c5 {[%clk 0:01:10]} 19. Qxb7 {[%clk 0:01:38]}  cxd4 {[%clk 0:01:05]} 20. Qb4 {[%clk 0:01:28]}  Qc7 {[%clk 0:00:56]} 21. b3 {[%clk 0:01:19]}  Qc5 {[%clk 0:00:52]} 22. Qd2 {[%clk 0:01:18]}  Ra3 {[%clk 0:00:52]} 23. Rab1 {[%clk 0:01:06]}  Rea8 {[%clk 0:00:49]} 24. Rb2 {[%clk 0:01:06]}  Qa7 {[%clk 0:00:42]} 25. Rf2 {[%clk 0:01:05]}  Bc6 {[%clk 0:00:35]} 26. Qb4 {[%clk 0:00:52]}  Qc5 {[%clk 0:00:33]} 27. Qd2 {[%clk 0:00:51]}  Nd7 {[%clk 0:00:33]} 28. f4 {[%clk 0:00:46]}  Nf6 {[%clk 0:00:30]} 29. Qd3 {[%clk 0:00:46]}  Ng4 {[%clk 0:00:26]} 30. Rfd2 {[%clk 0:00:45]}  Ne3 {[%clk 0:00:26]} 31. Bf3 {[%clk 0:00:41]}  f5 {[%clk 0:00:26]} 32. h3 {[%clk 0:00:31]}  Re8 {[%clk 0:00:20]} 33. Qxd4 {[%clk 0:00:28]}  fxe4 {[%clk 0:00:16]} 34. Bh5 {[%clk 0:00:19]}  Qxh5 {[%clk 0:00:14]} 35. Qxe3 {[%clk 0:00:18]}  Qxh3+ {[%clk 0:00:14]} 36. Kg1 {[%clk 0:00:19]}  Qe6 {[%clk 0:00:13]} 37. Rd4 {[%clk 0:00:17]}  Rea8 {[%clk 0:00:11]} 38. Rdd2 {[%clk 0:00:15]}  Qf6 {[%clk 0:00:10]} 39. Qb6 {[%clk 0:00:14]}  e3 {[%clk 0:00:08]} 40. Rh2 {[%clk 0:00:12]}  Bf3 {[%clk 0:00:06]} 41. Qxe3 {[%clk 0:00:10]}  Bb7 {[%clk 0:00:06]} 42. Rbe2 {[%clk 0:00:08]}  Kh8 {[%clk 0:00:05]} 43. Qc1 {[%clk 0:00:06]}  R3a7 {[%clk 0:00:04]} 44. a4 {[%clk 0:00:05]}  Qd4+ {[%clk 0:00:04]} 45. Kf1 {[%clk 0:00:04]}  Qf6 {[%clk 0:00:04]} 46. Qe3 {[%clk 0:00:03]}  Ba6 {[%clk 0:00:04]} 47. Re1 {[%clk 0:00:03]}  Rb7 {[%clk 0:00:04]} 48. Qe4 {[%clk 0:00:03]}  Rab8 {[%clk 0:00:04]} 49. a5 {[%clk 0:00:03]}  Rxb3 {[%clk 0:00:04]} 50. Qe6 {[%clk 0:00:03]}  Qxe6 {[%clk 0:00:04]} 51. Rxe6 {[%clk 0:00:04]}  Bxc4+ {[%clk 0:00:03]} 52. Ke1 {[%clk 0:00:02]}  Bxe6 {[%clk 0:00:03]} 53. Re2 {[%clk 0:00:02]}  Rb1+ {[%clk 0:00:04]} 54. Kf2 {[%clk 0:00:03]}  R8b2 {[%clk 0:00:04]} 55. Rxb2 {[%clk 0:00:03]}  Rxb2+ {[%clk 0:00:05]} 0-1


[Site "https://www.chess.com"]

[Event "Titled Tuesday Blitz April 18 Late 2023"]
[White "Koc, Przemyslaw"]
[Black "Mekhitarian, Krikor Sevag"]
[WhiteFideId "1109081"]
[BlackFideId "2107660"]
[WhiteElo "2161"]
[BlackElo "2604"]
[Result "1/2-1/2"]
[Round "06"]
[TimeControl "180+2"]
[Date "2023.04.18"]
[WhiteClock "0:00:16"]
[BlackClock "0:00:03"]

1. Nf3 {[%clk 0:03:00]}  d5 {[%clk 0:02:59]} 2. d4 {[%clk 0:03:01]}  Nf6 {[%clk 0:02:50]} 3. e3 {[%clk 0:03:01]}  g6 {[%clk 0:02:38]} 4. Bd3 {[%clk 0:03:00]}  Bg7 {[%clk 0:02:39]} 5. O-O {[%clk 0:03:00]}  O-O {[%clk 0:02:40]} 6. b3 {[%clk 0:03:00]}  c5 {[%clk 0:02:39]} 7. Bb2 {[%clk 0:03:00]}  cxd4 {[%clk 0:02:39]} 8. exd4 {[%clk 0:02:59]}  Nc6 {[%clk 0:02:39]} 9. a3 {[%clk 0:02:59]}  Bg4 {[%clk 0:02:38]} 10. Nbd2 {[%clk 0:02:59]}  Rc8 {[%clk 0:02:37]} 11. h3 {[%clk 0:02:58]}  Bxf3 {[%clk 0:02:37]} 12. Qxf3 {[%clk 0:02:59]}  e6 {[%clk 0:02:36]} 13. Qe2 {[%clk 0:02:54]}  Nh5 {[%clk 0:02:32]} 14. Qe3 {[%clk 0:02:50]}  Qc7 {[%clk 0:02:18]} 15. f4 {[%clk 0:02:48]}  Ne7 {[%clk 0:02:16]} 16. g4 {[%clk 0:02:47]}  Nf6 {[%clk 0:02:16]} 17. Rac1 {[%clk 0:02:32]}  a6 {[%clk 0:02:07]} 18. c4 {[%clk 0:02:31]}  Qd8 {[%clk 0:02:01]} 19. c5 {[%clk 0:02:29]}  Ne4 {[%clk 0:02:01]} 20. Nxe4 {[%clk 0:02:27]}  dxe4 {[%clk 0:02:02]} 21. Bxe4 {[%clk 0:02:27]}  Qd7 {[%clk 0:01:59]} 22. Rfd1 {[%clk 0:02:22]}  Rfd8 {[%clk 0:01:56]} 23. Kg2 {[%clk 0:02:21]}  Nc6 {[%clk 0:01:52]} 24. d5 {[%clk 0:02:11]}  exd5 {[%clk 0:01:51]} 25. Rxd5 {[%clk 0:02:09]}  Qe7 {[%clk 0:01:45]} 26. Bxg7 {[%clk 0:02:08]}  Kxg7 {[%clk 0:01:46]} 27. Rxd8 {[%clk 0:01:53]}  Rxd8 {[%clk 0:01:42]} 28. Qc3+ {[%clk 0:01:49]}  Kg8 {[%clk 0:01:41]} 29. Bxc6 {[%clk 0:01:47]}  Qe2+ {[%clk 0:01:41]} 30. Kg1 {[%clk 0:01:42]}  Rd2 {[%clk 0:00:21]} 31. Qf3 {[%clk 0:01:41]}  Qh2+ {[%clk 0:00:18]} 32. Kf1 {[%clk 0:01:41]}  bxc6 {[%clk 0:00:18]} 33. Re1 {[%clk 0:01:20]}  Rd8 {[%clk 0:00:16]} 34. f5 {[%clk 0:01:17]}  Kg7 {[%clk 0:00:12]} 35. f6+ {[%clk 0:01:17]}  Kh6 {[%clk 0:00:07]} 36. b4 {[%clk 0:01:10]}  g5 {[%clk 0:00:07]} 37. Re7 {[%clk 0:01:01]}  Rd4 {[%clk 0:00:06]} 38. Re4 {[%clk 0:00:56]}  Rxe4 {[%clk 0:00:02]} 39. Qxe4 {[%clk 0:00:57]}  Qxh3+ {[%clk 0:00:03]} 40. Ke2 {[%clk 0:00:57]}  Qh2+ {[%clk 0:00:02]} 41. Ke1 {[%clk 0:00:54]}  Qb2 {[%clk 0:00:03]} 42. Qxc6 {[%clk 0:00:53]}  Qxa3 {[%clk 0:00:02]} 43. Qe4 {[%clk 0:00:52]}  Qc1+ {[%clk 0:00:02]} 44. Ke2 {[%clk 0:00:52]}  Qc3 {[%clk 0:00:02]} 45. c6 {[%clk 0:00:44]}  a5 {[%clk 0:00:03]} 46. b5 {[%clk 0:00:31]}  Qc2+ {[%clk 0:00:03]} 47. Ke3 {[%clk 0:00:30]}  Qc3+ {[%clk 0:00:02]} 48. Qd3 {[%clk 0:00:30]}  Qe5+ {[%clk 0:00:02]} 49. Kd2 {[%clk 0:00:29]}  Qb2+ {[%clk 0:00:02]} 50. Qc2 {[%clk 0:00:29]}  Qd4+ {[%clk 0:00:02]} 51. Ke2 {[%clk 0:00:28]}  Qe5+ {[%clk 0:00:02]} 52. Kd1 {[%clk 0:00:26]}  Qd4+ {[%clk 0:00:01]} 53. Kc1 {[%clk 0:00:25]}  Qa1+ {[%clk 0:00:01]} 54. Kd2 {[%clk 0:00:24]}  Qd4+ {[%clk 0:00:02]} 55. Qd3 {[%clk 0:00:20]}  Qb2+ {[%clk 0:00:02]} 56. Kd1 {[%clk 0:00:21]}  Qa1+ {[%clk 0:00:03]} 57. Ke2 {[%clk 0:00:18]}  Qe5+ {[%clk 0:00:03]} 58. Kd2 {[%clk 0:00:16]}  Qb2+ {[%clk 0:00:03]} 1/2-1/2


[Site "https://www.chess.com"]

[Event "Titled Tuesday Blitz April 18 Late 2023"]
[White "Meunier-Pion, Jean"]
[Black "Domingo Nunez, Ruben"]
[WhiteFideId "20685327"]
[BlackFideId "22245570"]
[WhiteElo "2124"]
[BlackElo "2404"]
[Result "0-1"]
[Round "06"]
[TimeControl "180+2"]
[Date "2023.04.18"]
[WhiteClock "0:00:20"]
[BlackClock "0:01:15"]

1. e4 {[%clk 0:03:00]}  g6 {[%clk 0:03:00]} 2. d4 {[%clk 0:03:00]}  Bg7 {[%clk 0:03:01]} 3. Nc3 {[%clk 0:03:01]}  c6 {[%clk 0:03:02]} 4. f4 {[%clk 0:03:00]}  d5 {[%clk 0:03:02]} 5. e5 {[%clk 0:03:01]}  f6 {[%clk 0:03:03]} 6. Nf3 {[%clk 0:03:00]}  Nh6 {[%clk 0:03:04]} 7. Bd3 {[%clk 0:02:48]}  Bg4 {[%clk 0:03:04]} 8. O-O {[%clk 0:02:48]}  O-O {[%clk 0:03:04]} 9. h3 {[%clk 0:02:39]}  Bxf3 {[%clk 0:03:03]} 10. Rxf3 {[%clk 0:02:39]}  fxe5 {[%clk 0:03:03]} 11. fxe5 {[%clk 0:02:39]}  Rxf3 {[%clk 0:03:03]} 12. Qxf3 {[%clk 0:02:40]}  e6 {[%clk 0:03:04]} 13. Be3 {[%clk 0:02:28]}  c5 {[%clk 0:03:04]} 14. dxc5 {[%clk 0:02:20]}  Nc6 {[%clk 0:03:04]} 15. Bxh6 {[%clk 0:02:08]}  Bxh6 {[%clk 0:03:05]} 16. Rf1 {[%clk 0:01:58]}  Qe7 {[%clk 0:03:01]} 17. Qg3 {[%clk 0:01:28]}  Bg7 {[%clk 0:02:52]} 18. Ne2 {[%clk 0:01:13]}  Qxc5+ {[%clk 0:02:49]} 19. Kh1 {[%clk 0:01:13]}  Nxe5 {[%clk 0:02:36]} 20. Nf4 {[%clk 0:01:13]}  Re8 {[%clk 0:02:29]} 21. c3 {[%clk 0:00:58]}  Qd6 {[%clk 0:02:18]} 22. Bb1 {[%clk 0:00:57]}  Rf8 {[%clk 0:02:17]} 23. Re1 {[%clk 0:00:51]}  Nc4 {[%clk 0:02:05]} 24. Ne2 {[%clk 0:00:33]}  Qxg3 {[%clk 0:01:37]} 25. Nxg3 {[%clk 0:00:34]}  Be5 {[%clk 0:01:38]} 26. Ne2 {[%clk 0:00:29]}  Nxb2 {[%clk 0:01:37]} 27. g4 {[%clk 0:00:27]}  Nc4 {[%clk 0:01:28]} 28. Nc1 {[%clk 0:00:23]}  Bxc3 {[%clk 0:01:27]} 29. Rxe6 {[%clk 0:00:24]}  Rf1+ {[%clk 0:01:27]} 30. Kg2 {[%clk 0:00:24]}  Rxc1 {[%clk 0:01:27]} 31. Bd3 {[%clk 0:00:25]}  Ne5 {[%clk 0:01:23]} 32. Bb5 {[%clk 0:00:24]}  Kf7 {[%clk 0:01:21]} 33. Rd6 {[%clk 0:00:22]}  Rc2+ {[%clk 0:01:21]} 34. Kg3 {[%clk 0:00:22]}  a6 {[%clk 0:01:18]} 35. Ba4 {[%clk 0:00:21]}  Rxa2 {[%clk 0:01:17]} 36. Bb3 {[%clk 0:00:21]}  Ra3 {[%clk 0:01:18]} 37. Bxd5+ {[%clk 0:00:22]}  Ke7 {[%clk 0:01:18]} 38. Rb6 {[%clk 0:00:21]}  Bd4+ {[%clk 0:01:18]} 39. Kh4 {[%clk 0:00:20]}  Bxb6 {[%clk 0:01:16]} 40. g5 {[%clk 0:00:20]}  Bf2# {[%clk 0:01:15]} 0-1


[Site "https://www.chess.com"]

[Event "Titled Tuesday Blitz April 18 Late 2023"]
[White "mrithyunjay"]
[Black "cryptoguru02"]
[WhiteElo "2450"]
[BlackElo "2599"]
[Result "0-1"]
[Round "06"]
[TimeControl "180+2"]
[Date "2023.04.18"]
[WhiteClock "0:01:08"]
[BlackClock "0:01:24"]

1. e4 {[%clk 0:03:00]}  e5 {[%clk 0:02:59]} 2. Nf3 {[%clk 0:03:00]}  Nc6 {[%clk 0:02:59]} 3. Bb5 {[%clk 0:02:58]}  g6 {[%clk 0:02:59]} 4. c3 {[%clk 0:02:54]}  a6 {[%clk 0:02:58]} 5. Bxc6 {[%clk 0:02:47]}  dxc6 {[%clk 0:02:59]} 6. O-O {[%clk 0:02:47]}  Bg7 {[%clk 0:02:59]} 7. d4 {[%clk 0:02:47]}  exd4 {[%clk 0:03:00]} 8. cxd4 {[%clk 0:02:48]}  Bg4 {[%clk 0:02:52]} 9. Be3 {[%clk 0:02:43]}  Bxf3 {[%clk 0:02:45]} 10. gxf3 {[%clk 0:02:36]}  Ne7 {[%clk 0:02:42]} 11. Nc3 {[%clk 0:02:36]}  O-O {[%clk 0:02:42]} 12. Rc1 {[%clk 0:02:35]}  Qd7 {[%clk 0:02:39]} 13. Ne2 {[%clk 0:02:27]}  a5 {[%clk 0:02:23]} 14. Kh1 {[%clk 0:02:26]}  a4 {[%clk 0:02:20]} 15. Qd2 {[%clk 0:02:10]}  f5 {[%clk 0:02:11]} 16. e5 {[%clk 0:02:03]}  Nd5 {[%clk 0:02:06]} 17. f4 {[%clk 0:02:03]}  Qe6 {[%clk 0:02:03]} 18. Nc3 {[%clk 0:02:00]}  Rfd8 {[%clk 0:02:00]} 19. Nxd5 {[%clk 0:01:58]}  Qxd5+ {[%clk 0:02:01]} 20. Kg1 {[%clk 0:01:58]}  Bf8 {[%clk 0:02:02]} 21. a3 {[%clk 0:01:54]}  c5 {[%clk 0:02:00]} 22. Rfd1 {[%clk 0:01:52]}  c4 {[%clk 0:01:59]} 23. Qe2 {[%clk 0:01:50]}  b5 {[%clk 0:01:59]} 24. Qf1 {[%clk 0:01:49]}  Qf3 {[%clk 0:01:55]} 25. Qg2 {[%clk 0:01:49]}  Qxg2+ {[%clk 0:01:55]} 26. Kxg2 {[%clk 0:01:49]}  Rd5 {[%clk 0:01:55]} 27. Rc2 {[%clk 0:01:45]}  Rad8 {[%clk 0:01:55]} 28. Rcd2 {[%clk 0:01:46]}  Kf7 {[%clk 0:01:54]} 29. Kf3 {[%clk 0:01:42]}  Ke6 {[%clk 0:01:54]} 30. Ke2 {[%clk 0:01:41]}  c6 {[%clk 0:01:52]} 31. Ke1 {[%clk 0:01:40]}  R8d7 {[%clk 0:01:51]} 32. Ke2 {[%clk 0:01:40]}  Be7 {[%clk 0:01:52]} 33. Rc1 {[%clk 0:01:38]}  Bd8 {[%clk 0:01:49]} 34. Rdd1 {[%clk 0:01:38]}  Bb6 {[%clk 0:01:49]} 35. Rc2 {[%clk 0:01:35]}  Bxd4 {[%clk 0:01:49]} 36. Rcd2 {[%clk 0:01:35]}  c5 {[%clk 0:01:37]} 37. Kf3 {[%clk 0:01:31]}  h6 {[%clk 0:01:35]} 38. Ke2 {[%clk 0:01:30]}  Bxe3 {[%clk 0:01:31]} 39. Rxd5 {[%clk 0:01:29]}  Rxd5 {[%clk 0:01:32]} 40. Rxd5 {[%clk 0:01:29]}  Kxd5 {[%clk 0:01:33]} 41. fxe3 {[%clk 0:01:28]}  g5 {[%clk 0:01:31]} 42. Kf3 {[%clk 0:01:18]}  g4+ {[%clk 0:01:31]} 43. Kg3 {[%clk 0:01:16]}  b4 {[%clk 0:01:31]} 44. e4+ {[%clk 0:01:16]}  Ke6 {[%clk 0:01:28]} 45. exf5+ {[%clk 0:01:11]}  Kxf5 {[%clk 0:01:29]} 46. Kf2 {[%clk 0:01:08]}  c3 {[%clk 0:01:24]} 47. bxc3 {[%clk 0:01:08]}  bxa3 {[%clk 0:01:24]} 0-1


[Site "https://www.chess.com"]

[Event "Titled Tuesday Blitz April 18 Late 2023"]
[White "Mackster23"]
[Black "benny_aizenberg"]
[WhiteElo "2432"]
[BlackElo "2595"]
[Result "1-0"]
[Round "06"]
[TimeControl "180+2"]
[Date "2023.04.18"]
[WhiteClock "0:00:04"]
[BlackClock "0:00:02"]

1. e4 {[%clk 0:03:00]}  Nf6 {[%clk 0:02:58]} 2. e5 {[%clk 0:03:00]}  Nd5 {[%clk 0:02:58]} 3. d4 {[%clk 0:03:00]}  d6 {[%clk 0:02:58]} 4. c4 {[%clk 0:03:01]}  Nb6 {[%clk 0:02:58]} 5. exd6 {[%clk 0:03:02]}  cxd6 {[%clk 0:02:58]} 6. Nc3 {[%clk 0:03:02]}  g6 {[%clk 0:02:56]} 7. Bd3 {[%clk 0:03:03]}  Bg7 {[%clk 0:02:55]} 8. Nge2 {[%clk 0:03:03]}  Nc6 {[%clk 0:02:56]} 9. Be3 {[%clk 0:03:03]}  O-O {[%clk 0:02:54]} 10. b3 {[%clk 0:03:03]}  e5 {[%clk 0:02:54]} 11. d5 {[%clk 0:03:02]}  Ne7 {[%clk 0:02:53]} 12. Rc1 {[%clk 0:02:53]}  f5 {[%clk 0:02:52]} 13. f4 {[%clk 0:02:53]}  e4 {[%clk 0:02:50]} 14. Bb1 {[%clk 0:02:52]}  Nd7 {[%clk 0:02:50]} 15. Nd4 {[%clk 0:02:50]}  Nf6 {[%clk 0:02:44]} 16. h3 {[%clk 0:02:47]}  Bd7 {[%clk 0:02:33]} 17. O-O {[%clk 0:02:45]}  a6 {[%clk 0:02:34]} 18. a4 {[%clk 0:02:25]}  Qa5 {[%clk 0:02:22]} 19. Qd2 {[%clk 0:02:20]}  Rac8 {[%clk 0:02:14]} 20. Nxe4 {[%clk 0:02:04]}  Qxd2 {[%clk 0:01:58]} 21. Nxd2 {[%clk 0:02:05]}  b5 {[%clk 0:01:58]} 22. axb5 {[%clk 0:01:54]}  axb5 {[%clk 0:01:58]} 23. Bd3 {[%clk 0:01:29]}  bxc4 {[%clk 0:01:53]} 24. bxc4 {[%clk 0:01:28]}  Rc7 {[%clk 0:01:47]} 25. Rb1 {[%clk 0:00:58]}  Rfc8 {[%clk 0:01:44]} 26. Rb3 {[%clk 0:00:54]}  Ne4 {[%clk 0:01:31]} 27. Bxe4 {[%clk 0:00:45]}  fxe4 {[%clk 0:01:30]} 28. Nb5 {[%clk 0:00:22]}  Bxb5 {[%clk 0:01:23]} 29. Rxb5 {[%clk 0:00:23]}  Nf5 {[%clk 0:01:22]} 30. Kf2 {[%clk 0:00:19]}  Ra8 {[%clk 0:01:17]} 31. g4 {[%clk 0:00:12]}  Nxe3 {[%clk 0:01:17]} 32. Kxe3 {[%clk 0:00:13]}  Ra3+ {[%clk 0:01:17]} 33. Ke2 {[%clk 0:00:12]}  e3 {[%clk 0:01:17]} 34. Ne4 {[%clk 0:00:07]}  Bf8 {[%clk 0:01:17]} 35. Rc1 {[%clk 0:00:07]}  Kg7 {[%clk 0:01:14]} 36. Rb2 {[%clk 0:00:03]}  Rca7 {[%clk 0:01:03]} 37. Rbc2 {[%clk 0:00:03]}  R7a4 {[%clk 0:01:00]} 38. Rc3 {[%clk 0:00:03]}  Ra2+ {[%clk 0:00:55]} 39. R1c2 {[%clk 0:00:04]}  Ra1 {[%clk 0:00:50]} 40. Rxe3 {[%clk 0:00:04]}  Rh1 {[%clk 0:00:47]} 41. Ng5 {[%clk 0:00:03]}  Rh2+ {[%clk 0:00:35]} 42. Kd3 {[%clk 0:00:04]}  Ra3+ {[%clk 0:00:32]} 43. Kd4 {[%clk 0:00:04]}  Rxe3 {[%clk 0:00:17]} 44. Rxh2 {[%clk 0:00:04]}  Ra3 {[%clk 0:00:15]} 45. Ne6+ {[%clk 0:00:03]}  Kf7 {[%clk 0:00:15]} 46. Nxf8 {[%clk 0:00:04]}  Kxf8 {[%clk 0:00:15]} 47. Rb2 {[%clk 0:00:04]}  Rxh3 {[%clk 0:00:14]} 48. c5 {[%clk 0:00:04]}  dxc5+ {[%clk 0:00:12]} 49. Kxc5 {[%clk 0:00:05]}  Ke7 {[%clk 0:00:12]} 50. Rb7+ {[%clk 0:00:05]}  Kd8 {[%clk 0:00:12]} 51. Kd6 {[%clk 0:00:05]}  Kc8 {[%clk 0:00:12]} 52. Rg7 {[%clk 0:00:06]}  Rf3 {[%clk 0:00:11]} 53. Ke5 {[%clk 0:00:04]}  Re3+ {[%clk 0:00:10]} 54. Kf6 {[%clk 0:00:05]}  Re4 {[%clk 0:00:10]} 55. Kg5 {[%clk 0:00:05]}  h6+ {[%clk 0:00:07]} 56. Kxh6 {[%clk 0:00:05]}  Rxf4 {[%clk 0:00:07]} 57. Rxg6 {[%clk 0:00:05]}  Rd4 {[%clk 0:00:07]} 58. d6 {[%clk 0:00:04]}  Kd7 {[%clk 0:00:07]} 59. g5 {[%clk 0:00:04]}  Rh4+ {[%clk 0:00:08]} 60. Kg7 {[%clk 0:00:04]}  Rg4 {[%clk 0:00:08]} 61. Kf6 {[%clk 0:00:04]}  Rf4+ {[%clk 0:00:08]} 62. Ke5 {[%clk 0:00:05]}  Rg4 {[%clk 0:00:09]} 63. Rg7+ {[%clk 0:00:05]}  Kd8 {[%clk 0:00:08]} 64. Kf6 {[%clk 0:00:05]}  Rf4+ {[%clk 0:00:07]} 65. Kg6 {[%clk 0:00:06]}  Rd4 {[%clk 0:00:07]} 66. d7 {[%clk 0:00:06]}  Rd6+ {[%clk 0:00:07]} 67. Kh7 {[%clk 0:00:06]}  Rd1 {[%clk 0:00:07]} 68. g6 {[%clk 0:00:07]}  Rh1+ {[%clk 0:00:07]} 69. Kg8 {[%clk 0:00:07]}  Rg1 {[%clk 0:00:07]} 70. Kf8 {[%clk 0:00:02]}  Rg2 {[%clk 0:00:05]} 71. Kf7 {[%clk 0:00:02]}  Rf2+ {[%clk 0:00:03]} 72. Kg8 {[%clk 0:00:02]}  Rg2 {[%clk 0:00:03]} 73. Kh8 {[%clk 0:00:02]}  Rh2+ {[%clk 0:00:03]} 74. Rh7 {[%clk 0:00:02]}  Rg2 {[%clk 0:00:02]} 75. g7 {[%clk 0:00:03]}  Rg1 {[%clk 0:00:01]} 76. g8=Q+ {[%clk 0:00:03]}  Rxg8+ {[%clk 0:00:02]} 77. Kxg8 {[%clk 0:00:04]} 1-0


[Site "https://www.chess.com"]

[Event "Titled Tuesday Blitz April 18 Late 2023"]
[White "Gubajdullin, Alexei"]
[Black "mistrzemi"]
[WhiteFideId "4141202"]
[WhiteElo "2279"]
[BlackElo "2430"]
[Result "0-1"]
[Round "06"]
[TimeControl "180+2"]
[Date "2023.04.18"]
[WhiteClock "0:00:11"]
[BlackClock "0:00:37"]

1. d4 {[%clk 0:03:00]}  Nf6 {[%clk 0:02:47]} 2. Nf3 {[%clk 0:02:58]}  e6 {[%clk 0:02:46]} 3. Bf4 {[%clk 0:02:59]}  d5 {[%clk 0:02:46]} 4. e3 {[%clk 0:02:59]}  Bd6 {[%clk 0:02:46]} 5. Ne5 {[%clk 0:02:56]}  O-O {[%clk 0:02:46]} 6. Nd2 {[%clk 0:02:56]}  c5 {[%clk 0:02:46]} 7. c3 {[%clk 0:02:56]}  Nc6 {[%clk 0:02:44]} 8. Bg3 {[%clk 0:02:56]}  Qe7 {[%clk 0:02:43]} 9. f4 {[%clk 0:02:56]}  Nd7 {[%clk 0:02:43]} 10. Bd3 {[%clk 0:02:56]}  f6 {[%clk 0:02:38]} 11. Bxh7+ {[%clk 0:02:40]}  Kxh7 {[%clk 0:02:39]} 12. Qh5+ {[%clk 0:02:39]}  Kg8 {[%clk 0:02:40]} 13. Ng6 {[%clk 0:02:40]}  Qe8 {[%clk 0:02:40]} 14. O-O {[%clk 0:02:32]}  f5 {[%clk 0:02:34]} 15. Nf3 {[%clk 0:02:21]}  Rf6 {[%clk 0:02:31]} 16. Nfh4 {[%clk 0:02:00]}  Nf8 {[%clk 0:02:24]} 17. Qh8+ {[%clk 0:01:54]}  Kf7 {[%clk 0:02:24]} 18. Nxf8 {[%clk 0:01:54]}  Qxf8 {[%clk 0:02:21]} 19. Qh5+ {[%clk 0:01:53]}  Kg8 {[%clk 0:02:09]} 20. Qe2 {[%clk 0:01:48]}  Bd7 {[%clk 0:02:04]} 21. Nf3 {[%clk 0:01:47]}  Rh6 {[%clk 0:01:59]} 22. Bh4 {[%clk 0:01:45]}  Be7 {[%clk 0:01:55]} 23. Bg5 {[%clk 0:01:45]}  Bxg5 {[%clk 0:01:54]} 24. fxg5 {[%clk 0:01:44]}  Rh7 {[%clk 0:01:50]} 25. g4 {[%clk 0:01:44]}  fxg4 {[%clk 0:01:41]} 26. Ne5 {[%clk 0:01:43]}  Qe8 {[%clk 0:01:42]} 27. Qxg4 {[%clk 0:01:15]}  Nxe5 {[%clk 0:01:25]} 28. dxe5 {[%clk 0:01:15]}  Qh5 {[%clk 0:01:25]} 29. Qg3 {[%clk 0:01:15]}  Be8 {[%clk 0:01:20]} 30. Rf4 {[%clk 0:01:12]}  Bg6 {[%clk 0:01:18]} 31. Raf1 {[%clk 0:01:12]}  Qe2 {[%clk 0:01:14]} 32. R4f2 {[%clk 0:01:06]}  Qd3 {[%clk 0:01:08]} 33. Qf4 {[%clk 0:01:05]}  Bf5 {[%clk 0:01:05]} 34. h4 {[%clk 0:00:33]}  g6 {[%clk 0:01:02]} 35. Qg3 {[%clk 0:00:24]}  Rf8 {[%clk 0:00:58]} 36. Rf4 {[%clk 0:00:23]}  Rhf7 {[%clk 0:00:57]} 37. R1f2 {[%clk 0:00:22]}  Qd1+ {[%clk 0:00:50]} 38. Rf1 {[%clk 0:00:20]}  Qd3 {[%clk 0:00:41]} 39. Kh2 {[%clk 0:00:19]}  Be4 {[%clk 0:00:38]} 40. Rxf7 {[%clk 0:00:15]}  Qxf1 {[%clk 0:00:38]} 41. Rxf1 {[%clk 0:00:12]}  Rxf1 {[%clk 0:00:38]} 42. Qg4 {[%clk 0:00:12]}  Rh1+ {[%clk 0:00:37]} 43. Kg3 {[%clk 0:00:10]}  Rg1+ {[%clk 0:00:37]} 44. Kh3 {[%clk 0:00:10]}  Bf5 {[%clk 0:00:37]} 45. Qxf5 {[%clk 0:00:09]}  exf5 {[%clk 0:00:36]} 46. Kh2 {[%clk 0:00:10]}  Re1 {[%clk 0:00:36]} 47. e6 {[%clk 0:00:09]}  Rxe3 {[%clk 0:00:36]} 48. e7 {[%clk 0:00:10]}  Rxe7 {[%clk 0:00:37]} 49. Kg3 {[%clk 0:00:10]}  Kf7 {[%clk 0:00:35]} 50. Kf4 {[%clk 0:00:10]}  Re4+ {[%clk 0:00:35]} 51. Kg3 {[%clk 0:00:11]}  Rg4+ {[%clk 0:00:36]} 52. Kf3 {[%clk 0:00:11]}  d4 {[%clk 0:00:37]} 0-1


[Site "https://www.chess.com"]